fUST/lending_fUST_20241224
["ID","MTS","AMOUNT","RATE_DAILY","PERIOD"]
[346526627,1735037893774,-545054.28324435,0.00019272,30]
[346526628,1735037893799,-939.11545849,0.00019272,120]
[346526629,1735037893823,-330.25598011,0.00019272,120]
[346526630,1735037893847,-412.91382977,0.00019272,120]
[346526631,1735037893872,-590.219999,0.00019272,120]
[346526632,1735037893896,-302.11236163,0.00019272,120]
[346526633,1735037893920,-222259.43652635,0.00019272,30]
[346526634,1735037893947,-1422.3814818,0.00019272,120]
[346526635,1735037893971,-181.95169028,0.00019272,120]
[346526636,1735037893997,-211.16104364,0.00019272,120]
[346526637,1735037894024,-193.05816679,0.00019272,120]
[346526638,1735037894051,-178.89854436,0.00019272,120]
[346526639,1735037894076,-632.22589623,0.00019272,120]
[346526640,1735037894100,-5211.49500837,0.00019272,30]
[346526641,1735037894125,-1511.89800898,0.00019272,120]
[346526642,1735037894150,-1052.82465699,0.00019272,120]
[346526643,1735037894174,-31441.88280352,0.00019272,120]
[346526644,1735037900668,-3697.00562181,0.00019272,120]
[346526645,1735037900694,-2183.86124429,0.00019272,120]
[346526646,1735037900719,-310.00483199,0.00019272,120]
[346526647,1735037900745,-151.0,0.00019272,30]
[346526648,1735037900771,-172.713185,0.00019272,30]
[346526649,1735037900796,-250.0,0.00019272,30]
[346526650,1735037900821,-250.0,0.00019272,30]
[346526651,1735037900847,-250.0,0.00019272,30]
[346526652,1735037900871,-250.0,0.00019272,30]
[346526653,1735037900896,-250.0,0.00019272,30]
[346526654,1735037900920,-250.0,0.00019272,30]
[346526655,1735037900946,-250.0,0.00019272,30]
[346526656,1735037900971,-250.0,0.00019272,30]
[346526657,1735037900996,-250.0,0.00019272,30]
[346526658,1735037901022,-250.0,0.00019272,30]
[346526659,1735037901046,-250.0,0.00019272,30]
[346526660,1735037901075,-250.0,0.00019272,30]
[346526661,1735037960325,385.06101419,0.00023,120]
[346526662,1735037971379,160.0,0.00018895,120]
[346526663,1735038003128,200.0,0.00022,120]
[346526664,1735038030778,160.0,0.00019473,120]
[346526665,1735038054293,-153.1,0.000199,31]
[346526666,1735038054322,-153.1,0.000199,31]
[346526667,1735038054351,-153.1,0.000199,31]
[346526668,1735038054380,-153.1,0.000199,31]
[346526669,1735038054409,-153.1,0.000199,31]
[346526670,1735038054437,-153.1,0.000199,31]
[346526671,1735038054464,-153.1,0.000199,31]
[346526672,1735038054491,-153.1,0.000199,31]
[346526673,1735038054518,-153.1,0.000199,31]
[346526674,1735038054555,-391.68963611,0.000212,30]
[346526675,1735038054585,-153.1,0.000216,31]
[346526676,1735038054614,-153.1,0.000216,31]
[346526677,1735038054645,-153.1,0.000216,31]
[346526678,1735038054673,-153.1,0.000216,31]
[346526679,1735038054702,-153.1,0.000216,31]
[346526680,1735038054731,-153.1,0.000216,31]
[346526681,1735038054760,-153.1,0.000216,31]
[346526682,1735038054788,-153.1,0.000216,31]
[346526683,1735038054815,-3000.0,0.00021917,30]
[346526684,1735038054839,-3000.0,0.00021917,30]
[346526685,1735038054863,-3000.0,0.00021917,30]
[346526686,1735038054887,-3000.0,0.00021917,30]
[346526687,1735038054912,-3000.0,0.00021917,30]
[346526688,1735038054936,-3000.0,0.00021917,30]
[346526689,1735038054960,-3000.0,0.00021917,30]
[346526690,1735038054986,-3000.0,0.00021917,30]
[346526691,1735038055011,-3000.0,0.00021917,30]
[346526692,1735038055035,-3000.0,0.00021917,30]
[346526693,1735038055061,-3000.0,0.00021917,30]
[346526694,1735038055085,-3000.0,0.00021917,30]
[346526695,1735038055110,-3000.0,0.00021917,30]
[346526696,1735038055135,-3000.0,0.00021917,30]
[346526697,1735038055159,-3000.0,0.00021917,30]
[346526698,1735038055184,-3000.0,0.00021917,30]
[346526699,1735038055209,-3000.0,0.00021917,30]
[346526700,1735038055234,-3000.0,0.00021917,30]
[346526701,1735038055259,-3000.0,0.00021917,30]
[346526702,1735038055283,-3000.0,0.00021917,30]
[346526703,1735038055307,-1131.97530442,0.00021917,30]
[346526704,1735038055336,-1113.0,0.00022,30]
[346526705,1735038055367,-153.1,0.000233,31]
[346526706,1735038055395,-153.1,0.000233,31]
[346526707,1735038055423,-153.1,0.000233,31]
[346526708,1735038055454,-153.1,0.000233,31]
[346526709,1735038055482,-153.1,0.000233,31]
[346526710,1735038055509,-153.1,0.000233,31]
[346526711,1735038055536,-153.1,0.000233,31]
[346526712,1735038055565,-153.1,0.000233,31]
[346526713,1735038055591,-500.0,0.000237,30]
[346526714,1735038055617,-883.68264733,0.000237,30]
[346526715,1735038055643,-1600.0,0.000237,30]
[346526716,1735038055668,-1600.0,0.000237,30]
[346526717,1735038055696,-1600.0,0.000237,30]
[346526718,1735038055935,-1600.0,0.000237,30]
[346526719,1735038055965,-1600.0,0.000237,30]
[346526720,1735038055995,-1600.0,0.000237,30]
[346526721,1735038056021,-1600.0,0.000237,30]
[346526722,1735038056046,-1600.0,0.000237,30]
[346526723,1735038056074,-1600.0,0.000237,30]
[346526724,1735038056100,-1600.0,0.000237,30]
[346526725,1735038056125,-1600.0,0.000237,30]
[346526726,1735038056152,-1600.0,0.000237,30]
[346526727,1735038056179,-1600.0,0.000237,30]
[346526728,1735038056205,-2692.90413652,0.000237,30]
[346526729,1735038056230,-862.90993926,0.000237,30]
[346526730,1735038056257,-500.0,0.000237,30]
[346526731,1735038056282,-900.0,0.000237,30]
[346526732,1735038056307,-900.0,0.000237,30]
[346526733,1735038056332,-500.0,0.000237,30]
[346526734,1735038056358,-900.0,0.000237,30]
[346526735,1735038056385,-503.83358676,0.000237,30]
[346526736,1735038056411,-900.0,0.000237,30]
[346526737,1735038056436,-900.0,0.000237,30]
[346526738,1735038056461,-900.0,0.000237,30]
[346526739,1735038056486,-3700.0,0.000237,30]
[346526740,1735038056511,-900.0,0.000237,30]
[346526741,1735038056537,-3700.0,0.000237,30]
[346526742,1735038056561,-900.0,0.000237,30]
[346526743,1735038056588,-3700.0,0.000237,30]
[346526744,1735038056613,-900.0,0.000237,30]
[346526745,1735038056641,-3700.0,0.000237,30]
[346526746,1735038056667,-1100.0,0.000237,30]
[346526747,1735038056694,-900.0,0.000237,30]
[346526748,1735038056719,-3700.0,0.000237,30]
[346526749,1735038056744,-1100.0,0.000237,30]
[346526750,1735038056770,-900.0,0.000237,30]
[346526751,1735038056796,-3700.0,0.000237,30]
[346526752,1735038056822,-1100.0,0.000237,30]
[346526753,1735038056848,-900.0,0.000237,30]
[346526754,1735038056875,-3700.0,0.000237,30]
[346526755,1735038056901,-1313.23921584,0.000237,30]
[346526756,1735038056928,-1100.0,0.000237,30]
[346526757,1735038056954,-3700.0,0.000237,30]
[346526758,1735038056984,-3700.0,0.000237,30]
[346526759,1735038057010,-1100.0,0.000237,30]
[346526760,1735038057037,-1100.0,0.000237,30]
[346526761,1735038057064,-3700.0,0.000237,30]
[346526762,1735038057091,-3700.0,0.000237,30]
[346526763,1735038057117,-1100.0,0.000237,30]
[346526764,1735038057144,-3700.0,0.000237,30]
[346526765,1735038057170,-1100.0,0.000237,30]
[346526766,1735038057196,-3700.0,0.000237,30]
[346526767,1735038057221,-1100.0,0.000237,30]
[346526768,1735038057246,-5020.23771196,0.000237,30]
[346526769,1735038057271,-1100.0,0.000237,30]
[346526770,1735038057296,-1100.0,0.000237,30]
[346526771,1735038057321,-1100.0,0.000237,30]
[346526772,1735038057346,-3600.0,0.000237,30]
[346526773,1735038057372,-3600.0,0.000237,30]
[346526774,1735038057399,-1100.0,0.000237,30]
[346526775,1735038057426,-3600.0,0.000237,30]
[346526776,1735038057452,-1633.3714035,0.000237,30]
[346526777,1735038057477,-3600.0,0.000237,30]
[346526778,1735038057503,-3600.0,0.000237,30]
[346526779,1735038057528,-3600.0,0.000237,30]
[346526780,1735038057553,-3600.0,0.000237,30]
[346526781,1735038057579,-3600.0,0.000237,30]
[346526782,1735038057604,-3600.0,0.000237,30]
[346526783,1735038057629,-3600.0,0.000237,30]
[346526784,1735038057655,-3600.0,0.000237,30]
[346526785,1735038057681,-3600.0,0.000237,30]
[346526786,1735038057707,-3600.0,0.000237,30]
[346526787,1735038057733,-6305.56320555,0.000237,30]
[346526788,1735038057760,-700.0,0.000237,30]
[346526789,1735038057786,-700.0,0.000237,30]
[346526790,1735038057813,-700.0,0.000237,30]
[346526791,1735038057840,-700.0,0.000237,30]
[346526792,1735038057865,-700.0,0.000237,30]
[346526793,1735038057891,-700.0,0.000237,30]
[346526794,1735038057916,-700.0,0.000237,30]
[346526795,1735038057941,-700.0,0.000237,30]
[346526796,1735038057966,-700.0,0.000237,30]
[346526797,1735038057993,-700.0,0.000237,30]
[346526798,1735038058018,-700.0,0.000237,30]
[346526799,1735038058045,-700.0,0.000237,30]
[346526800,1735038058071,-705.24718419,0.000237,30]
[346526801,1735038058097,-500.0,0.00024,30]
[346526802,1735038058122,-500.0,0.00024,30]
[346526803,1735038058148,-497.011494,0.00024,30]
[346526804,1735038058311,-178.543709,0.0002411,41]
[346526805,1735038058344,-153.1,0.000249,31]
[346526806,1735038058373,-153.1,0.000249,31]
[346526807,1735038058401,-153.1,0.000249,31]
[346526808,1735038058431,-153.1,0.000249,31]
[346526809,1735038058459,-153.1,0.000249,31]
[346526810,1735038058486,-153.1,0.000249,31]
[346526811,1735038058515,-153.1,0.000249,31]
[346526812,1735038058542,-153.1,0.000249,31]
[346526813,1735038058569,-1014.3,0.00025,31]
[346526814,1735038058595,-4000.0,0.00025,30]
[346526815,1735038058620,-20564.15347359,0.00025,30]
[346526816,1735038058646,-10016.65771205,0.00025,30]
[346526817,1735038058672,-14072.0,0.00025,30]
[346526818,1735038058702,-124626.97733901,0.00026,30]
[346526819,1735038058732,-55193.68481954,0.00026,30]
[346526820,1735038058763,-1600.0,0.00026,30]
[346526821,1735038058792,-1600.0,0.00026,30]
[346526822,1735038058820,-1600.0,0.00026,30]
[346526823,1735038058847,-1600.0,0.00026,30]
[346526824,1735038058874,-1600.0,0.00026,30]
[346526825,1735038058899,-1600.0,0.00026,30]
[346526826,1735038058925,-1600.0,0.00026,30]
[346526827,1735038058951,-1600.0,0.00026,30]
[346526828,1735038058980,-1600.0,0.00026,30]
[346526829,1735038059006,-1600.0,0.00026,30]
[346526830,1735038059033,-500.0,0.00026,30]
[346526831,1735038059063,-1600.0,0.00026,30]
[346526832,1735038059088,-500.0,0.00026,30]
[346526833,1735038059113,-1600.0,0.00026,30]
[346526834,1735038059139,-1600.0,0.00026,30]
[346526835,1735038059164,-1600.0,0.00026,30]
[346526836,1735038059191,-502.60069871,0.00026,30]
[346526837,1735038059216,-900.0,0.00026,30]
[346526838,1735038059241,-900.0,0.00026,30]
[346526839,1735038059266,-900.0,0.00026,30]
[346526840,1735038059295,-900.0,0.00026,30]
[346526841,1735038059321,-900.0,0.00026,30]
[346526842,1735038059349,-318.66533533,0.00026,30]
[346526843,1735038059378,-3700.0,0.00026,30]
[346526844,1735038059407,-900.0,0.00026,30]
[346526845,1735038059441,-190.0,0.00026,30]
[346526846,1735038059468,-3700.0,0.00026,30]
[346526847,1735038059495,-3700.0,0.00026,30]
[346526848,1735038059522,-499.3,0.00026,30]
[346526849,1735038059551,-900.0,0.00026,30]
[346526850,1735038059578,-3700.0,0.00026,30]
[346526851,1735038059607,-900.0,0.00026,30]
[346526852,1735038059636,-3700.0,0.00026,30]
[346526853,1735038059664,-500.0,0.00026,30]
[346526854,1735038059705,-900.0,0.00026,30]
[346526855,1735038059743,-1100.0,0.00026,30]
[346526856,1735038059782,-3700.0,0.00026,30]
[346526857,1735038059822,-500.0,0.00026,30]
[346526858,1735038059865,-900.0,0.00026,30]
[346526859,1735038059901,-1100.0,0.00026,30]
[346526860,1735038059938,-3700.0,0.00026,30]
[346526861,1735038059973,-900.0,0.00026,30]
[346526862,1735038060008,-3700.0,0.00026,30]
[346526863,1735038060043,-1100.0,0.00026,30]
[346526864,1735038060081,-900.0,0.00026,30]
[346526865,1735038060117,-1100.0,0.00026,30]
[346526866,1735038060148,-1100.0,0.00026,30]
[346526867,1735038060186,-900.0,0.00026,30]
[346526868,1735038060222,-3700.0,0.00026,30]
[346526869,1735038060255,-500.0,0.00026,30]
[346526870,1735038060287,-1100.0,0.00026,30]
[346526871,1735038060318,-900.0,0.00026,30]
[346526872,1735038060350,-500.0,0.00026,30]
[346526873,1735038060383,-3700.0,0.00026,30]
[346526874,1735038060419,-1100.0,0.00026,30]
[346526875,1735038060455,-500.0,0.00026,30]
[346526876,1735038060488,-3700.0,0.00026,30]
[346526877,1735038060521,-1100.0,0.00026,30]
[346526878,1735038060552,-3700.0,0.00026,30]
[346526879,1735038060583,-1100.0,0.00026,30]
[346526880,1735038060615,-3700.0,0.00026,30]
[346526881,1735038060648,-1100.0,0.00026,30]
[346526882,1735038060680,-3700.0,0.00026,30]
[346526883,1735038060713,-1100.0,0.00026,30]
[346526884,1735038060747,-3700.0,0.00026,30]
[346526885,1735038060778,-1100.0,0.00026,30]
[346526886,1735038060810,-1100.0,0.00026,30]
[346526887,1735038060842,-3600.0,0.00026,30]
[346526888,1735038060874,-1100.0,0.00026,30]
[346526889,1735038060905,-3600.0,0.00026,30]
[346526890,1735038060943,-1100.0,0.00026,30]
[346526891,1735038060976,-3600.0,0.00026,30]
[346526892,1735038061010,-163.9276411,0.00026,30]
[346526893,1735038061043,-3600.0,0.00026,30]
[346526894,1735038061080,-3600.0,0.00026,30]
[346526895,1735038061112,-3600.0,0.00026,30]
[346526896,1735038061144,-3600.0,0.00026,30]
[346526897,1735038061176,-3600.0,0.00026,30]
[346526898,1735038061212,-3600.0,0.00026,30]
[346526899,1735038061244,-3600.0,0.00026,30]
[346526900,1735038061275,-3600.0,0.00026,30]
[346526901,1735038061307,-3600.0,0.00026,30]
[346526902,1735038061337,-3600.0,0.00026,30]
[346526903,1735038061563,-3600.0,0.00026,30]
[346526904,1735038061603,-3600.0,0.00026,30]
[346526905,1735038061629,-499.3,0.00026,30]
[346526906,1735038061656,-700.0,0.00026,30]
[346526907,1735038061683,-700.0,0.00026,30]
[346526908,1735038061710,-700.0,0.00026,30]
[346526909,1735038061737,-700.0,0.00026,30]
[346526910,1735038061764,-700.0,0.00026,30]
[346526911,1735038061790,-700.0,0.00026,30]
[346526912,1735038061817,-700.0,0.00026,30]
[346526913,1735038061843,-700.0,0.00026,30]
[346526914,1735038061869,-700.0,0.00026,30]
[346526915,1735038061895,-700.0,0.00026,30]
[346526916,1735038061919,-700.0,0.00026,30]
[346526917,1735038061947,-700.0,0.00026,30]
[346526918,1735038061975,-700.0,0.00026,30]
[346526919,1735038062006,-700.0,0.00026,30]
[346526920,1735038062038,-153.1,0.000266,31]
[346526921,1735038062068,-153.1,0.000266,31]
[346526922,1735038062098,-153.1,0.000266,31]
[346526923,1735038062129,-153.1,0.000266,31]
[346526924,1735038062157,-5000.0,0.00027,30]
[346526925,1735038062183,-5000.0,0.00027,30]
[346526926,1735038062209,-5000.0,0.00027,30]
[346526927,1735038062236,-5000.0,0.00027,30]
[346526928,1735038062262,-5000.0,0.00027,30]
[346526929,1735038062287,-5000.0,0.00027,30]
[346526930,1735038062313,-5000.0,0.00027,30]
[346526931,1735038062338,-5000.0,0.00027,30]
[346526932,1735038062364,-4212.31,0.00027,30]
[346526933,1735038062392,-5000.0,0.00027,30]
[346526934,1735038062418,-5000.0,0.00027,30]
[346526935,1735038062445,-5000.0,0.00027,30]
[346526936,1735038062470,-5000.0,0.00027,30]
[346526937,1735038062495,-5000.0,0.00027,30]
[346526938,1735038062521,-12532.0,0.00027,30]
[346526939,1735038062547,-4941.97,0.00027,30]
[346526940,1735038062573,-254.02479,0.00027,120]
[346526941,1735038062601,-400.0,0.00027397,60]
[346526949,1735038107147,200.0,0.00023,120]
[346526950,1735038156107,385.06101419,0.00023,120]
[346526951,1735038182581,1000.0,0.00023,120]
[346526952,1735038264261,212.0,0.00023,120]
[346526955,1735038303118,200.0,0.00022,120]
[346527002,1735038636625,-382.277,0.0001221,2]
[346527004,1735038636635,-221.46517233,0.00012411,2]
[346527010,1735038636681,-243.53485258,0.00012411,2]
[346527012,1735038636690,-300.0,0.00012722,2]
[346527014,1735038636699,-150.388,0.00012723,2]
[346527015,1735038636709,-150.256,0.00012723,2]
[346527016,1735038636718,-250.0,0.00012723,2]
[346527018,1735038636727,-150.573,0.00012723,2]
[346527019,1735038636737,-150.0,0.00012723,2]
[346527020,1735038636746,-2123.0,0.00012723,2]
[346527021,1735038636756,-534.0,0.00012723,2]
[346527022,1735038636765,-771.32544848,0.00012723,2]
[346527031,1735038636892,-607.36882193,0.00012723,2]
[346527034,1735038636905,-663.95,0.00012723,2]
[346527037,1735038636932,-315.35572959,0.00012723,2]
[346527039,1735038636941,-1476.37643301,0.00012773,2]
[346527041,1735038636950,-7612.1858724,0.000128,2]
[346527066,1735038638514,-15406.94434874,0.000128,2]
[346527068,1735038638524,-169.54841329,0.00012849,2]
[346527069,1735038638534,-35923.50723797,0.0001285,2]
[346527070,1735038638580,-1504.90726,0.0001285,2]
[346527135,1735038643559,-500.0,0.0001285,2]
[346527137,1735038643572,-1000.0,0.0001285,2]
[346527139,1735038643583,-4269.87080956,0.0001285,2]
[346527142,1735038643595,-720.36626542,0.0001285,2]
[346527147,1735038643651,-10193.29341145,0.0001285,2]
[346527148,1735038643663,-408.0295115,0.0001285,2]
[346527201,1735038679960,158.46389959,0.00023,120]
[346527202,1735038733718,500.0,0.00023,120]
[346527203,1735038741248,500.0,0.00023,120]
[346527204,1735038795790,500.0,0.00023,120]
[346527205,1735038821194,538.8987,0.00023,120]
[346527207,1735038933711,604.04896675,0.00010148,2]
[346527211,1735039450020,30802.6,0.00023,120]
[346527260,1735039832823,-882.335,0.00010148,2]
[346527293,1735039838562,-447.72129026,0.00010148,2]
[346527299,1735039838608,-2147.51761351,0.00010148,2]
[346527305,1735039838655,-764.72712948,0.00010148,2]
[346527307,1735039838665,-380.665,0.0001221,2]
[346527309,1735039838674,-300.0,0.00012722,2]
[346527311,1735039838683,-300.0,0.00012722,2]
[346527313,1735039838693,-150.0,0.00012723,2]
[346527315,1735039838702,-534.0,0.00012723,2]
[346527317,1735039838711,-786.84787052,0.00012723,2]
[346527319,1735039838723,-744.41412948,0.00012723,2]
[346527321,1735039838732,-2358.0,0.00012723,2]
[346527324,1735039838741,-666.0,0.0001275,2]
[346527326,1735039838750,-557.28193495,0.00012773,2]
[346527364,1735040111523,10000.0,0.000171,60]
[346527365,1735040121123,10000.0,0.000171,60]
[346527366,1735040133499,7297.67,0.000171,60]
[346527367,1735040165755,10000.0,0.000171,60]
[346527368,1735040174399,10000.0,0.000171,60]
[346527369,1735040185657,1826.88,0.000171,60]
[346527370,1735040208191,4202.74,0.000171,60]
[346527428,1735041032100,-379.773,0.0001221,2]
[346527430,1735041032110,-19.20184234,0.00012379,2]
[346527478,1735041037779,-445.7981589,0.00012379,2]
[346527480,1735041037789,-227.0098644,0.00012448,2]
[346527482,1735041037799,-174.513,0.00012593,2]
[346527483,1735041037809,-239.423,0.00012715,2]
[346527485,1735041037819,-300.0,0.00012727,2]
[346527486,1735041037827,-300.0,0.00012727,2]
[346527487,1735041037837,-2248.72003312,0.00012728,2]
[346527488,1735041037848,-4838.74328477,0.00012728,2]
[346527490,1735041037861,-5118.15,0.00012728,2]
[346527491,1735041037873,-1790.90305565,0.00012728,2]
[346527492,1735041037884,-1594.25946868,0.00012728,2]
[346527493,1735041037895,-3078.71844064,0.00012728,2]
[346527494,1735041037906,-3310.09749913,0.00012728,2]
[346527501,1735041040007,-1419.45427022,0.00012728,2]
[346527502,1735041040019,-1354.55067164,0.00012728,2]
[346527503,1735041040075,-9437.1259294,0.00012728,2]
[346527510,1735041042918,-150.371,0.00012715,2]
[346527511,1735041042927,-1110.25551095,0.00012728,2]
[346527512,1735041042983,-12592.64439789,0.00012728,2]
[346527513,1735041042992,-1273.01059625,0.00012773,2]
[346527515,1735041043001,-2401.20681978,0.00012773,2]
[346527517,1735041043011,-500.0,0.00012849,2]
[346527518,1735041043020,-500.0,0.00012849,2]
[346527519,1735041043029,-500.0,0.00012849,2]
[346527520,1735041043038,-500.0,0.00012849,2]
[346527521,1735041043047,-339.03339106,0.00012849,2]
[346527522,1735041043056,-511.14729297,0.00012849,2]
[346527523,1735041043066,-143073.82074511,0.0001285,2]
[346527524,1735041043076,-996.0084355,0.0001285,2]
[346527528,1735041192238,5903.302775,0.00016,30]
[346527529,1735041219315,497.011494,0.00023,120]
[346527530,1735041333823,1511.93,0.00023,120]
[346527706,1735042081640,4726.962,0.00023,120]
[346527851,1735042232643,-588.33,0.00011868,2]
[346527854,1735042232655,-300.212836,0.00011993,2]
[346527856,1735042232667,-286.08027548,0.0001221,2]
[346527858,1735042232681,-98.96872452,0.0001221,2]
[346527861,1735042232693,-368.53627548,0.00012496,2]
[346527885,1735042232920,-5594.97533566,0.00012496,2]
[346527888,1735042232934,-200.6953933,0.00012672,2]
[346527890,1735042232946,-200.69539328,0.00012723,2]
[346527892,1735042232959,-1145.70953658,0.00012773,2]
[346527895,1735042232971,-200.69539328,0.00012773,2]
[346527897,1735042232985,-300.0,0.00012849,2]
[346527899,1735042232997,-300.0,0.00012849,2]
[346527902,1735042233009,-5022177.33408705,0.0001285,2]
[346527905,1735042233027,-4166.39385345,0.0001285,2]
[346528095,1735042237847,-52750.0,0.0001285,2]
[346528119,1735042240066,-2112.07724835,0.0001285,2]
[346528156,1735042242956,-614922.82538299,0.0001285,2]
[346528157,1735042243014,-4513.51568123,0.0001285,2]
[346528161,1735042243125,-473.55406177,0.0001285,2]
[346528171,1735042245964,-676.84788392,0.00012773,2]
[346528172,1735042245973,-9622.95189708,0.0001285,2]
[346528173,1735042246019,-265.3,0.0001285,2]
[346528174,1735042246031,-1017.99168661,0.0001285,2]
[346528187,1735042355862,3055.935429,0.00023,120]
[346528372,1735043438063,-317.189,0.00010932,2]
[346528373,1735043438073,-317.189,0.00011042,2]
[346528374,1735043438083,-382.727,0.0001221,2]
[346528375,1735043438092,-169.86,0.00012267,2]
[346528376,1735043438101,-465.00000007,0.00012348,2]
[346528377,1735043438111,-1512.99589956,0.00012358,2]
[346528378,1735043438120,-173.101,0.00012593,2]
[346528379,1735043438129,-300.0,0.00012618,2]
[346528380,1735043438138,-300.0,0.00012618,2]
[346528381,1735043438147,-154.0,0.00012619,2]
[346528382,1735043438156,-154.0,0.00012619,2]
[346528383,1735043438165,-154.0,0.00012619,2]
[346528384,1735043438174,-154.0,0.00012619,2]
[346528385,1735043438184,-154.0,0.00012619,2]
[346528386,1735043438193,-154.0,0.00012619,2]
[346528387,1735043438203,-154.0,0.00012619,2]
[346528388,1735043438212,-154.0,0.00012619,2]
[346528389,1735043438221,-154.0,0.00012619,2]
[346528390,1735043438230,-154.0,0.00012619,2]
[346528391,1735043438240,-154.0,0.00012619,2]
[346528392,1735043438249,-154.0,0.00012619,2]
[346528393,1735043438258,-154.0,0.00012619,2]
[346528394,1735043438267,-154.0,0.00012619,2]
[346528395,1735043438276,-154.0,0.00012619,2]
[346528396,1735043438286,-154.0,0.00012619,2]
[346528397,1735043438295,-161.01,0.00012619,2]
[346528398,1735043438304,-154.0,0.00012619,2]
[346528399,1735043438313,-154.0,0.00012619,2]
[346528400,1735043438323,-154.0,0.00012619,2]
[346528401,1735043438332,-1444.39823167,0.00012619,2]
[346528402,1735043438341,-214.1393056,0.000127,2]
[346528403,1735043438351,-1417.66261335,0.00012773,2]
[346528404,1735043438360,-1313.84541613,0.000128,2]
[346528405,1735043438369,-306.73515,0.000128,2]
[346528406,1735043438382,-10631.76464884,0.0001282,3]
[346528407,1735043438391,-9808.54335758,0.0001285,2]
[346528408,1735043438402,-581.65499999,0.0001285,2]
[346528409,1735043438415,-2167.25774625,0.0001285,2]
[346528410,1735043438427,-28998.36369308,0.0001285,2]
[346528411,1735043438440,-2005.52602761,0.0001285,2]
[346528417,1735043440267,-7705.42013697,0.0001285,2]
[346528432,1735043443165,-667727.77524374,0.0001285,2]
[346528433,1735043443176,-17509.20952992,0.0001285,2]
[346528434,1735043443222,-1504.95,0.0001285,2]
[346528435,1735043443280,-47142.777176,0.0001285,2]
[346528457,1735044360305,-1000.0,0.00014,14]
[346528458,1735044360616,-694.12,0.000148,10]
[346528459,1735044360638,-111.76,0.0001484,10]
[346528460,1735044388549,694.12,0.00013,15]
[346528466,1735044608903,3128.80271417,0.00023,120]
[346528502,1735044632405,-379.091,0.00010932,2]
[346528504,1735044632416,-379.091,0.00011042,2]
[346528505,1735044632426,-705.0606374,0.0001127,2]
[346528506,1735044632436,-300.0,0.00011999,2]
[346528508,1735044632446,-300.0,0.00011999,2]
[346528510,1735044632456,-45070.6475626,0.00012,15]
[346528511,1735044632517,-23976.88383229,0.00012,15]
[346528599,1735044643348,-364.11394091,0.00011967,2]
[346528600,1735044643405,-15.11205909,0.00011967,2]
[346528602,1735044643416,-9786.97162994,0.00012,15]
[346528627,1735044646482,-755.0,0.00012,15]
[346528628,1735044646595,-10353.54110504,0.00012,15]
[346528631,1735044734528,2106.87627238,1.4e-05,10]
[346528632,1735044793722,150.0,0.00016,30]
[346528643,1735045471890,160.0,0.00023,120]
[346528646,1735045506709,610.3,0.00023,120]